bitfinex/quotes_SOLUSD_20250107
["timestamp","ask_amount","ask_price","bid_price","bid_amount"]
[1736278106836,7.76106964,205.15,205.05,14.29911374]
[1736278107017,7.76106964,205.15,205.05,23.776884]
[1736278107330,0.12549,205.13,205.03,14.29911374]
[1736278107517,0.12549,205.13,205.05,38.07599774]
[1736278109416,0.12549,205.12,205.0,136.3]
[1736278109623,0.12549,205.12,205.01,2.4]
[1736278110046,0.12549,205.12,205.02,38.07599774]
[1736278110740,7.76106964,205.12,205.03,0.12549]
[1736278111038,0.12549,205.11,205.03,0.12549]
[1736278111833,0.12549,205.11,205.05,23.902374]
[1736278112216,0.12549,205.13,205.07,23.902374]
[1736278112553,0.12549,205.13,205.07,0.12549]
[1736278112719,0.12549,205.13,205.07,23.902374]
[1736278113037,0.12549,205.13,205.07,38.20148774]
[1736278113249,0.12549,205.13,205.07,23.902374]
[1736278115209,7.63557964,205.15,205.07,14.42460374]
[1736278115423,7.63557964,205.15,205.11,0.12549]
[1736278115632,7.63557964,205.15,205.13,0.12549]
[1736278115925,7.63557964,205.15,205.14,14.42460374]
[1736278116114,7.63557964,205.17,205.15,0.12549]
[1736278116438,0.12549,205.16,205.15,14.42460374]
[1736278116614,0.12549,205.16,205.15,38.20148774]
[1736278117114,0.12549,205.16,205.15,40.60148774]
[1736278117310,0.12549,205.2,205.17,0.12549]
[1736278117515,0.12549,205.2,205.19,0.12549]
[1736278118531,0.12549,205.22,205.19,0.12549]
[1736278119219,0.12549,205.25,205.19,0.12549]
[1736278120439,0.85670328,205.25,205.15,16.69911374]
[1736278120615,0.12549,205.25,205.15,16.69911374]
[1736278120820,0.12549,205.25,205.16,23.902374]
[1736278121027,0.12549,205.25,205.16,38.20148774]
[1736278121643,0.12549,205.25,205.18,23.902374]
[1736278122237,0.12549,205.25,205.18,14.42460374]
[1736278122744,7.63557964,205.29,205.22,0.12549]
[1736278123051,0.12549,205.28,205.21,23.902374]
[1736278123542,0.12549,205.29,205.21,23.902374]
[1736278125141,0.12549,205.29,205.18,34.29911374]
[1736278125328,0.85670328,205.29,205.16,14.29911374]
[1736278126216,0.85670328,205.29,205.17,23.902374]
[1736278126616,0.85670328,205.29,205.19,0.12549]
[1736278126938,0.85670328,205.29,205.19,23.902374]
[1736278127939,0.85670328,205.29,205.17,0.12549]
[1736278128339,13.64047964,205.3,205.17,0.12549]
[1736278129348,0.12549,205.26,205.17,0.12549]
[1736278129535,0.12549,205.26,205.17,2.4]
[1736278132246,0.12549,205.24,205.1,14.29911374]
[1736278132544,1.5259,205.25,205.04,5.0]
[1736278132545,0.12549,205.19,205.07,14.29911374]
[1736278132747,0.12549,205.19,205.09,14.29911374]
[1736278132950,0.12549,205.19,205.1,14.29911374]
[1736278133140,0.12549,205.19,205.11,38.20148774]
[1736278133337,0.12549,205.19,205.09,38.07599774]
[1736278133544,0.12549,205.19,205.09,14.29911374]
[1736278133854,0.12549,205.19,205.1,38.20148774]
[1736278134432,0.12549,205.19,205.09,14.29911374]
[1736278134758,0.12549,205.19,205.11,0.12549]
[1736278135254,0.12549,205.19,205.11,14.29911374]
[1736278135448,0.12549,205.19,205.12,0.12549]
[1736278137049,6.518,205.23,205.13,38.20148774]
[1736278137643,0.12549,205.22,205.13,23.902374]
[1736278137840,0.12549,205.19,205.09,14.29911374]
[1736278138037,0.12549,205.19,205.1,38.20148774]
[1736278138250,0.12549,205.19,205.12,23.902374]
[1736278138733,0.12549,205.19,205.12,14.42460374]
[1736278139153,0.12549,205.19,205.12,23.776884]
[1736278139349,0.12549,205.19,205.11,23.776884]
[1736278139659,0.12549,205.19,205.07,2.4]
[1736278139850,0.12549,205.17,205.08,23.902374]
[1736278140532,0.12549,205.17,205.07,14.29911374]
[1736278140929,0.12549,205.17,205.08,23.776884]
[1736278142055,0.12549,205.17,205.09,0.12549]
[1736278142250,0.12549,205.17,205.1,23.776884]
[1736278142756,0.12549,205.17,205.11,0.12549]
[1736278142954,0.12549,205.17,205.06,16.69911374]
[1736278143261,0.12549,205.17,205.06,23.902374]
[1736278143435,0.12549,205.17,205.06,38.20148774]
[1736278143841,20.12549,205.17,205.06,38.20148774]
[1736278144255,20.12549,205.17,205.06,23.902374]
[1736278145358,0.12549,205.15,205.06,23.902374]
[1736278145671,0.12549,205.15,205.05,14.29911374]
[1736278146138,0.12549,205.15,205.06,23.902374]
[1736278147260,0.12549,205.15,205.03,23.902374]
[1736278147472,0.12549,205.15,205.01,14.29911374]
[1736278147915,0.12549,205.15,205.02,23.776884]
[1736278148037,26.1623,205.16,204.99,14.29911374]
[1736278148038,0.12549,205.13,204.99,14.29911374]
[1736278148240,0.12549,205.13,204.98,16.69911374]
[1736278148565,0.12549,205.07,204.95,16.69911374]
[1736278148865,0.12549,205.07,204.96,23.902374]
[1736278149041,0.12549,205.07,204.96,38.20148774]
[1736278149246,0.12549,205.07,204.98,14.29911374]
[1736278149448,0.12549,205.07,204.97,14.29911374]
[1736278149643,0.12549,205.07,204.98,23.902374]
[1736278149840,0.12549,205.07,204.98,38.07599774]
[1736278150241,0.12549,205.07,204.99,0.12549]
[1736278151439,0.12549,205.07,204.98,23.902374]
[1736278152647,0.12549,205.07,205.0,14.42460374]
[1736278153069,0.12549,205.07,205.0,23.902374]
[1736278155459,0.12549,205.07,205.0,14.42460374]
[1736278156648,0.12549,205.07,205.0,23.776884]
[1736278156847,0.12549,205.07,205.0,23.902374]
[1736278159470,0.12549,205.07,205.0,14.42460374]
[1736278159971,0.12549,205.07,205.0,23.902374]
[1736278160570,0.12549,205.07,205.0,0.12549]
[1736278160769,0.12549,205.07,205.0,23.902374]
[1736278160965,0.12549,205.07,205.01,0.12549]
[1736278161674,0.12549,205.07,204.98,26.176884]
[1736278163357,0.12549,205.07,204.96,20.0]
[1736278163550,0.12549,205.07,204.94,2.4]
[1736278163757,0.12549,205.07,204.93,2.4]
[1736278164173,0.12549,205.04,204.94,23.902374]
[1736278164363,0.12549,205.04,204.94,0.12549]
[1736278164757,0.12549,205.04,204.94,23.776884]
[1736278165477,0.12549,205.04,204.95,0.12549]
[1736278166377,0.12549,205.04,204.93,23.902374]
[1736278166581,0.12549,205.04,204.93,33.04615265]
[1736278167154,0.12549,205.04,204.93,0.12549]
[1736278167354,0.12549,205.04,204.93,23.902374]
[1736278168375,0.12549,205.04,204.92,2.4]
[1736278168561,0.12549,205.04,204.88,15.63557865]
[1736278168876,0.12549,205.02,204.87,13.7022]
[1736278169055,0.12549,205.02,204.88,11.54377865]
[1736278170180,0.12549,205.02,204.93,23.902374]
[1736278170683,0.12549,205.02,204.92,0.12549]
[1736278171456,0.12549,205.02,204.91,23.902374]
[1736278171774,0.12549,205.02,204.91,14.42374974]
[1736278173188,0.12549,205.02,204.92,14.29825974]
[1736278173369,0.12549,205.02,204.93,23.902374]
[1736278173766,0.12549,205.02,204.93,0.12549]
[1736278174088,0.12549,205.02,204.92,0.12549]
[1736278175080,0.12549,205.02,204.93,38.20063374]
[1736278175460,0.12549,205.02,204.95,23.902374]
[1736278175663,0.12549,205.02,204.95,38.20063374]
[1736278176080,0.12549,205.02,204.95,23.902374]
[1736278177179,0.12549,205.02,204.93,23.902374]
[1736278178189,0.12549,205.02,204.93,14.42374974]
[1736278178504,0.12549,205.02,204.95,38.20063374]
[1736278178786,7.9723,205.08,204.97,23.902374]
[1736278178964,0.12549,205.07,204.97,23.902374]
[1736278179589,0.12549,205.07,204.97,14.42374974]
[1736278179797,0.12549,205.07,204.99,23.902374]
[1736278180392,0.12549,205.07,204.97,14.29825974]
[1736278180795,0.12549,205.07,204.99,23.902374]
[1736278181478,0.12549,205.07,204.98,0.12549]
[1736278183891,0.12549,205.07,204.97,0.12549]
[1736278184096,0.12549,205.07,204.96,26.176884]
[1736278184275,0.12549,205.07,204.96,23.776884]
[1736278184476,0.12549,205.07,204.96,2.4]
[1736278185000,0.12549,205.07,204.96,26.176884]
[1736278185179,0.12549,205.07,204.97,23.776884]
[1736278185385,0.12549,205.07,204.96,2.4]
[1736278185785,0.12549,205.07,204.96,26.176884]
[1736278185982,0.12549,205.07,204.97,23.776884]
[1736278187881,7.76106964,205.07,204.97,23.776884]
[1736278188301,20.0,205.04,204.92,14.29825974]
[1736278188507,0.12549,205.03,204.9,2.4]
[1736278188801,19.155572,205.04,204.93,23.776884]
[1736278188990,0.12549,205.07,204.93,23.776884]
[1736278189176,19.528076,205.06,204.93,23.776884]
[1736278189502,0.12549,205.04,204.92,20.0]
[1736278189706,0.12549,205.04,204.93,23.902374]
[1736278190600,20.12549,205.04,204.93,23.902374]
[1736278191590,0.12549,205.04,204.93,23.902374]
[1736278192501,0.12549,205.04,204.97,23.902374]
[1736278193012,0.12549,205.04,204.99,0.12549]
[1736278194591,0.12549,205.04,204.98,23.776884]
[1736278196482,7.63557964,205.08,204.97,2.4]
[1736278196684,7.63557964,205.08,204.99,23.776884]
[1736278196897,0.12549,205.07,204.99,23.776884]
[1736278197405,0.12549,205.07,204.99,38.06534754]
[1736278197710,7.63557964,205.1,204.99,38.06534754]
[1736278198507,0.12549,205.09,204.98,34.28846354]
[1736278198806,7.63557964,205.11,204.98,20.0]
[1736278199013,0.12549,205.1,204.99,23.776884]
[1736278199786,0.12549,205.06,204.99,23.776884]
[1736278200284,0.12549,205.06,204.97,2.4]
[1736278200486,0.12549,205.04,204.92,2.4]
[1736278200710,0.12549,205.04,204.93,20.0]
[1736278200901,0.12549,205.04,204.92,2.4]
[1736278201206,0.12549,205.04,204.9,1.6146]
[1736278201411,0.12549,205.04,204.92,22.4]
[1736278201587,0.12549,205.04,204.93,20.0]
[1736278201787,0.12549,205.01,204.94,23.902374]
[1736278202287,7.63557964,205.03,204.94,38.19083754]
[1736278202484,7.63557964,205.03,204.99,0.12549]
[1736278202688,7.63557964,205.06,205.01,0.12549]
[1736278202982,0.12549,205.05,205.01,0.12549]
[1736278203709,0.12549,205.06,205.01,0.12549]
[1736278204099,0.12549,205.07,205.01,0.12549]
[1736278206722,7.63557964,205.08,205.05,14.28846354]
[1736278206924,7.63557964,205.08,205.06,14.41395354]
[1736278207110,7.76106964,205.08,205.07,23.902374]
[1736278207618,7.63557964,205.12,205.08,23.902374]
[1736278207818,7.63557964,205.12,205.11,23.902374]
[1736278207993,7.63557964,205.12,205.11,14.41395354]
[1736278208511,0.12549,205.12,205.11,14.41395354]
[1736278208910,0.12549,205.12,205.11,15.1449494]
[1736278209513,0.12549,205.11,205.08,14.28846354]
[1736278209712,0.12549,205.11,205.1,43.902374]
[1736278210244,0.12549,205.22,205.1,58.19083754]
[1736278210524,0.12549,205.22,205.11,14.28846354]
[1736278210829,20.0,205.21,205.11,14.28846354]
[1736278211207,0.12549,205.2,205.1,43.776884]
[1736278211408,0.12549,205.2,205.09,2.4]
[1736278211614,20.0,205.24,205.1,23.902374]
[1736278211815,0.12549,205.22,205.09,2.4]
[1736278212129,20.0,205.16,205.06,2.52549]
[1736278212325,0.12549,205.15,205.07,23.776884]
[1736278212620,0.12549,205.15,205.08,0.12549]
[1736278213429,0.12549,205.15,205.07,0.12549]
[1736278214028,0.12549,205.15,205.07,23.902374]
[1736278215724,0.12549,205.15,205.07,23.776884]
[1736278216322,0.12549,205.15,205.06,2.4]
[1736278217116,20.0,205.16,205.07,23.776884]
[1736278217634,0.12549,205.15,205.07,23.776884]
[1736278217815,0.12549,205.15,205.07,38.06534754]
[1736278218015,7.63557964,205.23,205.12,0.12549]
[1736278218409,34.28269331,205.24,205.14,0.12549]
[1736278219019,0.12549,205.23,205.14,0.12549]
[1736278219223,0.12549,205.23,205.13,2.4]
[1736278219420,20.0,205.21,205.13,2.4]
[1736278220119,0.12549,205.2,205.13,2.4]
[1736278220628,0.12549,205.2,205.14,23.776884]
[1736278221411,0.12549,205.2,205.13,2.4]
[1736278221618,32.14463464,205.29,205.13,2.4]
[1736278221619,28.71553464,205.29,205.13,2.4]
[1736278221818,28.71553464,205.29,205.14,23.776884]
[1736278222125,0.12549,205.25,205.14,23.776884]
[1736278223110,0.12549,205.23,205.1,2.4]
[1736278223418,0.12549,205.18,205.06,2.4]
[1736278223820,0.12549,205.16,205.06,2.4]
[1736278224225,0.12549,205.16,205.07,23.776884]
[1736278224425,0.12549,205.16,205.06,2.4]
[1736278225235,0.12549,205.16,205.03,23.902374]
[1736278225445,1.0709,205.17,204.97,22.24046354]
[1736278225628,0.12549,205.12,204.98,2.4]
[1736278225829,0.12549,205.12,205.01,23.776884]
[1736278226437,0.12549,205.12,204.97,7.952]
[1736278226642,0.12549,205.12,204.98,2.4]
[1736278226823,0.12549,205.12,204.99,23.902374]
[1736278231021,1.0709,205.17,205.06,23.902374]
[1736278231640,21.0709,205.17,205.06,23.902374]
[1736278232055,1.0709,205.17,205.06,23.902374]
[1736278234052,1.0709,205.17,205.08,23.902374]
[1736278234558,1.0709,205.17,205.05,16.68846354]
[1736278234935,1.0709,205.17,205.06,23.902374]
[1736278236360,1.0709,205.17,205.07,14.28846354]
[1736278237257,1.0709,205.17,205.07,0.12549]
[1736278237435,1.0709,205.17,205.06,23.776884]
[1736278238076,20.0,205.16,205.02,2.4]
[1736278238239,0.12549,205.11,205.0,2.4]
[1736278238567,0.12549,205.09,204.99,2.4]
[1736278238731,0.12549,205.09,204.98,2.4]
[1736278239048,0.12549,205.09,204.99,23.902374]
[1736278239365,20.0,205.12,205.01,23.776884]
[1736278239859,0.12549,205.11,205.02,0.12549]
[1736278240768,0.12549,205.11,205.01,0.12549]
[1736278241361,0.12549,205.11,204.99,20.0]
[1736278241663,0.12549,205.11,204.97,2.4]
[1736278241864,0.12549,205.11,204.98,23.902374]
[1736278244765,20.12549,205.11,204.98,23.902374]
[1736278244971,20.12549,205.11,204.98,20.0]
[1736278245157,20.12549,205.11,204.99,0.12549]
[1736278245346,6.12689,205.06,204.92,1.5386]
[1736278245551,6.12689,205.06,204.93,2.4]
[1736278245752,6.12689,205.06,204.94,20.0]
[1736278246072,6.12689,205.06,204.95,0.12549]
[1736278246766,6.12689,205.06,204.95,23.902374]
[1736278248348,6.12689,205.06,204.95,23.776884]
[1736278249154,0.12549,205.02,204.91,2.4]
[1736278249353,0.12549,205.02,204.87,24.39262431]
[1736278249562,0.12549,205.02,204.89,2.4]
[1736278249764,0.12549,205.02,204.9,23.902374]
[1736278250354,0.12549,205.02,204.9,23.776884]
[1736278251072,0.12549,205.02,204.94,23.776884]
[1736278251272,1.5992,205.05,204.94,23.776884]
[1736278251476,0.12549,205.04,204.92,22.86052431]
[1736278251691,0.12549,205.04,204.93,22.98601431]
[1736278251855,0.12549,205.04,204.94,23.776884]
[1736278253874,0.12549,205.04,204.92,20.0]
[1736278254379,0.12549,205.02,204.92,20.0]
[1736278255259,0.12549,205.02,204.93,0.12549]
[1736278255465,0.12549,205.02,204.91,20.0]
[1736278255765,0.12549,205.02,204.9,23.902374]
[1736278256878,0.12549,205.02,204.9,46.76289831]
[1736278257264,0.12549,205.02,204.94,0.12549]
[1736278257464,0.12549,205.02,204.9,22.86052431]
[1736278257676,0.12549,205.02,204.89,25.26052431]
[1736278257854,0.12549,205.02,204.9,23.776884]
[1736278258056,0.12549,205.02,204.91,0.12549]
[1736278260656,8.0467,205.01,204.84,22.86052431]
[1736278260853,0.12549,204.97,204.82,25.26052431]
[1736278261074,0.12549,204.97,204.85,46.63740831]
[1736278261268,0.12549,204.97,204.87,23.776884]
[1736278261463,0.12549,204.97,204.86,14.30296974]
[1736278261877,0.12549,204.97,204.87,0.12549]
[1736278262185,0.12549,204.97,204.87,23.902374]
[1736278262656,0.12549,204.97,204.86,0.12549]
[1736278263191,0.12549,204.97,204.85,23.776884]
[1736278264061,0.12549,204.97,204.86,0.12549]
[1736278264468,0.12549,204.97,204.84,34.30296974]
[1736278264787,0.12549,204.97,204.87,14.30296974]
[1736278264971,0.12549,204.97,204.88,0.12549]
[1736278265179,0.12549,204.97,204.9,0.12549]
[1736278265684,0.12549,204.97,204.84,20.0]
[1736278265889,0.12549,204.97,204.84,34.30296974]
[1736278266184,0.12549,204.97,204.85,38.07985374]
[1736278266385,0.12549,204.97,204.84,20.0]
[1736278266582,20.0,204.93,204.74,7.9052]
[1736278266886,20.0,204.93,204.77,14.30296974]
[1736278267063,0.12549,204.92,204.78,23.902374]
[1736278267257,0.12549,204.92,204.78,38.20534374]
[1736278267485,0.12549,204.92,204.78,14.42845974]
[1736278268012,0.12549,204.92,204.8,14.30296974]
[1736278268174,0.12549,204.92,204.81,23.776884]
[1736278268374,0.12549,204.92,204.8,14.30296974]
[1736278268688,0.12549,204.92,204.82,14.42845974]
[1736278268916,0.12549,204.92,204.83,23.776884]
[1736278269468,0.12549,204.92,204.82,23.776884]
[1736278269781,0.12549,204.92,204.81,14.30296974]
[1736278270099,0.12549,204.92,204.83,0.12549]
[1736278270968,0.12549,204.94,204.85,0.12549]
[1736278271591,0.12549,204.94,204.84,0.12549]
[1736278273099,0.12549,204.94,204.86,23.902374]
[1736278273283,0.12549,204.94,204.76,12.2091]
[1736278273487,0.12549,204.92,204.76,26.51206974]
[1736278273692,0.12549,204.92,204.77,23.902374]
[1736278274178,0.12549,204.92,204.79,23.902374]
[1736278274382,0.12549,204.92,204.79,38.20534374]
[1736278274779,0.12549,204.92,204.79,23.902374]
[1736278275393,0.12549,204.92,204.79,23.776884]
[1736278276401,0.12549,204.92,204.79,14.30296974]
[1736278276584,0.12549,204.92,204.78,38.07985374]
[1736278276787,0.12549,204.92,204.79,15.03512589]
[1736278277089,0.12549,204.92,204.81,0.12549]
[1736278277893,0.12549,204.92,204.79,20.0]
[1736278278297,0.12549,204.92,204.83,0.12549]
[1736278279318,0.12549,204.92,204.8,38.07985374]
[1736278279484,0.12549,204.92,204.83,0.12549]
[1736278280305,0.12549,204.92,204.82,23.776884]
[1736278280511,0.12549,204.92,204.82,26.176884]
[1736278281310,0.12549,204.92,204.82,2.4]
[1736278283063,6.55609,204.9,204.78,20.0]
[1736278283198,6.55609,204.9,204.75,2.4]
[1736278283506,6.55609,204.9,204.76,14.30296974]
[1736278283806,6.55609,204.9,204.77,14.30296974]
[1736278284012,6.55609,204.9,204.79,23.776884]
[1736278284515,6.55609,204.9,204.77,34.30296974]
[1736278284820,6.55609,204.9,204.77,20.0]
[1736278284986,0.12549,204.86,204.74,16.70296974]
[1736278285310,0.12549,204.86,204.74,2.4]
[1736278285492,0.12549,204.84,204.74,2.4]
[1736278286319,0.12549,204.84,204.75,23.902374]
[1736278287322,0.12549,204.84,204.75,24.63477547]
[1736278287512,0.12549,204.84,204.77,0.12549]
[1736278288199,0.12549,204.84,204.75,38.07985374]
[1736278288200,0.12549,204.84,204.76,0.12549]
[1736278288414,0.12549,204.84,204.75,23.776884]
[1736278289825,0.12549,204.84,204.74,0.12549]
[1736278290318,0.12549,204.84,204.75,23.776884]
[1736278294230,0.12549,204.84,204.74,0.12549]
[1736278294431,0.12549,204.84,204.74,34.30296974]
[1736278295023,0.12549,204.84,204.75,23.776884]
[1736278296738,0.12549,204.84,204.73,2.4]
[1736278297429,1.531,204.85,204.67,12.2146]
[1736278297430,0.12549,204.82,204.69,14.30296974]
[1736278297631,0.12549,204.82,204.7,2.4]
[1736278297821,0.12549,204.82,204.71,23.902374]
[1736278298605,0.12549,204.82,204.76,0.12549]
[1736278298940,0.12549,204.82,204.78,0.12549]
[1736278299329,0.12549,204.82,204.77,0.12549]
[1736278299741,0.12549,204.84,204.77,0.12549]
[1736278300031,0.12549,204.84,204.75,23.776884]
[1736278300243,0.12549,204.84,204.74,20.0]
[1736278300610,0.12549,204.84,204.74,23.902374]
[1736278301938,0.12549,204.84,204.73,14.30296974]
[1736278302142,0.12549,204.84,204.74,20.0]
[1736278304620,0.12549,204.84,204.73,20.0]
[1736278304821,0.12549,204.84,204.74,23.776884]
[1736278305360,0.12549,204.84,204.71,2.4]
[1736278305657,0.12549,204.84,204.72,23.902374]
[1736278305951,0.12549,204.84,204.75,0.12549]
[1736278307762,0.12549,204.84,204.78,0.12549]
[1736278308539,6.3021,204.88,204.79,43.902374]
[1736278308727,1.6346,204.9,204.79,23.902374]
[1736278309132,0.12549,204.89,204.79,23.902374]
[1736278309954,0.12549,204.89,204.79,38.20534374]
[1736278310168,0.12549,204.89,204.81,14.42845974]
[1736278310326,0.12549,204.89,204.81,23.776884]
[1736278310831,0.12549,204.89,204.81,43.776884]
[1736278311057,0.12549,204.89,204.81,58.07985374]
[1736278311846,0.12549,204.89,204.81,43.776884]
[1736278312559,0.12549,204.89,204.78,2.4]
[1736278313077,0.12549,204.89,204.77,23.902374]
[1736278313265,0.12549,204.89,204.77,0.12549]
[1736278313632,0.12549,204.89,204.77,23.902374]
[1736278314261,0.12549,204.89,204.77,38.20534374]
[1736278315665,0.12549,204.89,204.79,23.902374]
[1736278316050,0.12549,204.89,204.79,23.776884]
[1736278316256,0.12549,204.89,204.77,14.30296974]
[1736278317140,20.12549,204.89,204.78,23.902374]
[1736278317657,20.12549,204.89,204.78,0.12549]
[1736278317867,20.12549,204.89,204.78,14.30296974]
[1736278318463,20.12549,204.89,204.78,0.12549]
[1736278320354,20.12549,204.89,204.77,58.07985374]
[1736278320768,20.12549,204.89,204.78,14.30296974]
[1736278321161,0.12549,204.87,204.77,58.07985374]
[1736278321350,0.12549,204.87,204.77,52.93916784]
[1736278321655,0.12549,204.87,204.78,9.16228384]
[1736278322161,0.12549,204.89,204.78,9.16228384]
[1736278322362,0.12549,204.89,204.77,43.776884]
[1736278322667,0.12549,204.87,204.77,43.776884]
[1736278323785,0.12549,204.85,204.72,10.77328384]
[1736278323944,0.12549,204.85,204.75,2.4]
[1736278324252,0.12549,204.83,204.76,0.12549]
[1736278324467,20.12549,204.83,204.71,11.56228384]
[1736278324679,20.12549,204.83,204.71,9.16228384]
[1736278324980,6.0165,204.82,204.68,9.16228384]
[1736278325157,0.12549,204.78,204.68,2.4]
[1736278325348,0.12549,204.76,204.61,167.8756]
[1736278325548,0.12549,204.76,204.64,9.16228384]
[1736278325761,0.12549,204.74,204.62,2.4]
[1736278325977,0.12549,204.74,204.63,9.16228384]
[1736278326280,0.12549,204.74,204.64,23.902374]
[1736278326773,0.12549,204.74,204.68,23.776884]
[1736278327474,0.12549,204.74,204.69,0.12549]
[1736278328075,0.12549,204.74,204.69,23.902374]
[1736278328395,1.632,204.77,204.69,38.96543234]
[1736278328691,7.59540201,204.79,204.73,23.902374]
[1736278329058,0.12549,204.78,204.73,23.902374]
[1736278329680,0.12549,204.79,204.72,0.12549]
[1736278330197,0.12549,204.79,204.72,23.902374]
[1736278331477,0.12549,204.79,204.72,38.23287908]
[1736278332577,0.12549,204.79,204.72,38.10738908]
[1736278332757,0.12549,204.79,204.72,23.776884]
[1736278333386,0.12549,204.79,204.72,38.10738908]
[1736278333589,0.12549,204.79,204.72,38.83980089]
[1736278333878,0.12549,204.79,204.74,0.12549]
[1736278334482,0.12549,204.79,204.76,0.12549]
[1736278335684,0.12549,204.79,204.73,15.0628827]
[1736278335685,0.12549,204.79,204.74,23.902374]
[1736278337379,0.12549,204.81,204.74,38.23287908]
[1736278337581,0.12549,204.81,204.75,14.33050508]
[1736278337756,1.5466,204.82,204.78,0.12549]
[1736278337960,13.76830201,204.85,204.78,0.12549]
[1736278338168,0.12549,204.84,204.78,0.12549]
[1736278339200,0.12549,204.84,204.77,23.902374]
[1736278339486,0.12549,204.84,204.75,14.33050508]
[1736278339681,0.12549,204.84,204.76,20.0]
[1736278339886,0.12549,204.84,204.73,3.13239022]
[1736278340384,0.12549,204.84,204.73,2.4]
[1736278340787,0.12549,204.84,204.74,23.902374]
[1736278341387,0.12549,204.84,204.73,2.4]
[1736278341889,0.12549,204.84,204.74,23.776884]
[1736278342087,0.12549,204.81,204.74,23.776884]
[1736278342276,0.12549,204.81,204.75,0.12549]
[1736278342476,0.12549,204.81,204.67,14.33050508]
[1736278342677,0.12549,204.8,204.67,0.73262311]
[1736278343121,0.12549,204.8,204.64,14.33050508]
[1736278343290,0.12549,204.8,204.65,0.73266892]
[1736278343603,0.12549,204.8,204.66,23.902374]
[1736278343998,20.0,204.76,204.66,23.902374]
[1736278344207,0.12549,204.75,204.66,23.902374]
[1736278344503,0.12549,204.75,204.66,0.12549]
[1736278345109,0.12549,204.75,204.66,23.902374]
[1736278345795,0.12549,204.76,204.66,23.902374]
[1736278346286,0.12549,204.76,204.66,23.776884]
[1736278346508,0.12549,204.74,204.66,23.776884]
[1736278346686,6.76809,204.74,204.66,23.776884]
[1736278348388,6.76809,204.74,204.68,23.902374]
[1736278348589,6.76809,204.74,204.7,23.902374]
[1736278349020,0.12549,204.74,204.7,0.85810461]
[1736278349704,0.12549,204.74,204.7,0.12549]
[1736278350313,0.12549,204.74,204.72,0.12549]
[1736278350484,1.6041,204.75,204.72,0.12549]
[1736278351509,1.6041,204.75,204.7,23.902374]
[1736278351908,1.6041,204.75,204.72,0.12549]
[1736278352112,0.12549,204.78,204.7,0.7325127]
[1736278352513,0.12549,204.78,204.67,0.73261652]
[1736278353090,0.12549,204.78,204.68,23.902374]
[1736278353712,0.12549,204.75,204.68,23.902374]
[1736278353915,0.12549,204.75,204.65,23.776884]
[1736278354089,0.12549,204.75,204.68,0.12549]
[1736278355017,0.12549,204.75,204.68,0.85815807]
[1736278355523,0.12549,204.75,204.67,23.776884]
[1736278355713,0.12549,204.75,204.68,0.12549]
[1736278356218,0.12549,204.75,204.64,9.17060883]
[1736278356517,0.12549,204.73,204.61,0.73269916]
[1736278356717,0.12549,204.73,204.62,23.776884]
[1736278356892,0.12549,204.71,204.62,32.94749283]
[1736278357304,0.12549,204.71,204.63,0.12549]
[1736278358492,1.5832,204.74,204.66,9.17060883]
[1736278358692,14.11460201,204.78,204.7,0.12549]
[1736278358922,7.59540201,204.78,204.72,0.12549]
[1736278359218,0.12549,204.77,204.74,0.12549]
[1736278359823,0.12549,204.8,204.74,0.12549]
[1736278360222,0.12549,204.8,204.71,23.902374]
[1736278360403,0.12549,204.8,204.71,24.63483294]
[1736278363324,0.12549,204.8,204.71,33.80544177]
[1736278366411,0.12549,204.8,204.71,24.63483294]